bitfinex/quotes_ETHUSD_20241212
["timestamp","ask_amount","ask_price","bid_price","bid_amount"]
[1733987345132,1.1813,3934.9,3934.2,3.06245871]
[1733987345330,1.1813,3934.9,3934.3,3.0]
[1733987347669,0.55,3934.8,3934.0,3.0]
[1733987348029,0.55,3934.8,3934.2,3.0]
[1733987348739,2.1,3934.8,3934.2,5.5418]
[1733987348927,2.1,3934.8,3933.9,4.05187913]
[1733987349259,2.1,3934.8,3934.4,3.0]
[1733987350175,1.55,3934.8,3934.5,2.54161]
[1733987350521,1.55,3934.8,3934.2,2.54175]
[1733987350714,1.55,3934.8,3934.3,3.0]
[1733987351147,1.55,3934.8,3934.4,3.0]
[1733987351554,1.55,3934.8,3934.0,1.29015606]
[1733987351555,1.67984847,3934.8,3934.0,4.29015606]
[1733987351860,1.67984847,3934.8,3934.5,3.0]
[1733987352054,3.22984847,3934.8,3934.5,3.0]
[1733987352826,3.22984847,3934.8,3934.2,3.0]
[1733987353328,1.1694,3934.6,3933.9,5.54199]
[1733987354161,1.1694,3934.6,3933.8,0.50166101]
[1733987354337,1.1694,3934.6,3934.1,3.0]
[1733987355466,2.7194,3934.6,3934.1,3.0]
[1733987355964,2.7194,3934.6,3934.1,2.54186]
[1733987356160,2.7194,3934.6,3934.2,3.0]
[1733987357865,0.55,3934.3,3933.8,0.50166101]
[1733987358025,0.55,3934.1,3933.3,2.54233]
[1733987358229,1.1694,3933.8,3933.0,2.54253]
[1733987359033,2.7194,3933.8,3933.1,2.54248]
[1733987359228,2.7194,3933.8,3932.7,1.2386]
[1733987359229,2.7194,3933.8,3933.0,0.50406892]
[1733987359428,2.7194,3933.8,3933.2,2.54245]
[1733987359876,2.7194,3933.8,3933.3,3.0]
[1733987360885,2.7194,3933.8,3933.0,3.04662892]
[1733987361386,1.7194,3933.7,3933.1,3.0]
[1733987361675,0.55,3933.5,3933.0,3.0]
[1733987362434,2.1,3933.5,3933.0,3.0]
[1733987363279,2.1,3933.5,3932.7,2.54276]
[1733987363582,2.1,3933.5,3932.9,3.04163651]
[1733987363742,2.1,3933.5,3933.0,3.0]
[1733987364448,2.1,3933.5,3933.0,2.54258]
[1733987364874,2.1,3933.5,3933.1,3.0]
[1733987365240,0.55,3933.3,3932.8,3.0]
[1733987365678,2.1,3933.3,3932.8,3.0]
[1733987366442,2.1,3933.3,3932.9,2.54262]
[1733987366755,1.55,3933.3,3933.0,3.0]
[1733987367077,1.55,3933.3,3932.8,3.0]
[1733987367279,1.55,3933.3,3933.1,3.0]
[1733987368049,1.55,3933.3,3933.2,3.0]
[1733987368955,3.1,3933.3,3933.2,3.0]
[1733987371286,3.1,3933.3,3933.2,3.51465785]
[1733987372357,4.65,3933.3,3933.2,3.51465785]
[1733987372560,4.65,3933.3,3933.2,4.84238129]
[1733987375788,6.2,3933.3,3933.2,4.84238129]
[1733987377087,6.2,3933.3,3933.2,5.89426042]
[1733987377290,6.2,3933.3,3933.2,7.09906042]
[1733987377492,6.2,3933.3,3933.2,7.74990114]
[1733987377869,6.2,3933.3,3933.2,7.2244377]
[1733987378310,6.2,3933.3,3933.2,6.17232211]
[1733987379015,6.2,3933.3,3933.2,7.74990114]
[1733987379175,7.75,3933.3,3933.2,6.17232211]
[1733987379585,7.75,3933.3,3933.2,10.29235114]
[1733987380497,7.75,3933.3,3933.2,8.71477211]
[1733987381306,7.75,3933.3,3933.2,12.1364374]
[1733987382626,9.3,3933.3,3933.2,10.0332487]
[1733987384014,9.3,3933.3,3933.2,12.1418158]
[1733987384514,9.3,3933.3,3933.2,10.0332487]
[1733987384724,9.3,3933.3,3933.2,12.14204011]
[1733987385097,9.3,3933.3,3933.2,10.0332487]
[1733987385497,9.3,3933.3,3933.2,12.14216077]
[1733987385687,9.3,3933.3,3933.2,10.0332487]
[1733987385882,10.85,3933.3,3933.2,10.0332487]
[1733987386096,10.85,3933.3,3933.2,12.14266201]
[1733987386434,10.66935574,3933.3,3933.2,5.44334515]
[1733987386614,10.66935574,3933.3,3933.2,3.86092659]
[1733987386792,10.66935574,3933.3,3933.2,3.59764065]
[1733987386993,10.66935574,3933.3,3933.2,4.91611724]
[1733987387190,10.66935574,3933.3,3933.2,3.86092659]
[1733987387528,10.66935574,3933.3,3933.2,6.86092659]
[1733987388099,10.66935574,3933.3,3933.2,1.31847659]
[1733987388428,12.00476131,3933.3,3933.2,1.31847659]
[1733987388587,0.55,3933.1,3932.9,1.05519065]
[1733987388788,1.6847,3933.2,3932.7,2.37366724]
[1733987389096,1.1347,3933.1,3932.7,1.31847659]
[1733987389592,2.1,3933.2,3932.6,2.37366724]
[1733987389593,0.55,3933.0,3932.6,2.37366724]
[1733987389789,1.1347,3932.9,3932.6,1.31847659]
[1733987390742,0.55,3932.8,3932.4,1.05519065]
[1733987390896,1.1347,3932.7,3932.6,1.31847659]
[1733987392130,1.1347,3933.1,3932.6,1.31847659]
[1733987392338,0.55,3933.0,3932.7,3.0]
[1733987396162,2.1,3933.0,3932.7,3.0]
[1733987396729,2.1,3933.0,3932.9,1.31847659]
[1733987397527,2.1,3933.0,3932.7,1.31847659]
[1733987397528,3.2922,3933.0,3932.7,1.31847659]
[1733987398238,4.99835557,3933.0,3932.7,1.31847659]
[1733987398451,4.99835557,3933.0,3932.3,4.91669724]
[1733987398653,4.99835557,3933.0,3932.4,3.0]
[1733987398654,1.1922,3932.9,3932.4,3.0]
[1733987398869,1.1922,3932.7,3932.3,1.31847659]
[1733987399571,2.7422,3932.7,3932.1,0.27008415]
[1733987399730,0.55,3932.6,3932.1,0.27008415]
[1733987400052,0.55,3932.6,3932.0,0.254323]
[1733987400250,1.55,3932.7,3932.0,0.254323]
[1733987400251,1.1922,3932.3,3932.0,0.254323]
[1733987402843,2.7422,3932.3,3932.0,0.254323]
[1733987403647,0.55,3932.2,3932.0,0.254323]
[1733987404831,1.7422,3932.1,3932.0,0.254323]
[1733987406043,3.2922,3932.1,3932.0,0.254323]
[1733987406244,3.77642,3932.1,3932.0,0.254323]
[1733987409468,5.32642,3932.1,3932.0,0.254323]
[1733987410855,4.2922,3932.1,3932.0,0.254323]
[1733987411162,3.1,3932.1,3932.0,3.52440715]
[1733987411949,3.1,3932.1,3932.0,4.69170715]
[1733987412864,4.65,3932.1,3932.0,4.69170715]
[1733987416172,6.2,3932.1,3932.0,4.421623]
[1733987417044,6.2,3932.1,3932.0,5.39859045]
[1733987419040,6.2,3932.1,3932.0,4.23129045]
[1733987419266,6.2,3932.1,3932.0,3.254323]
[1733987419467,7.75,3932.1,3932.0,3.254323]
[1733987422961,9.3,3932.1,3932.0,3.254323]
[1733987424038,10.5363,3932.1,3932.0,3.254323]
[1733987424244,10.5363,3932.1,3932.0,0.254323]
[1733987424863,9.3,3932.1,3932.0,3.254323]
[1733987425186,9.3,3932.1,3932.0,4.57400894]
[1733987426374,10.85,3932.1,3932.0,3.254323]
[1733987427585,12.21363,3932.1,3932.0,0.254323]
[1733987428886,13.44993,3932.1,3932.0,0.254323]
[1733987429087,13.99993,3932.1,3932.0,0.254323]
[1733987429300,0.55,3931.8,3930.9,1.05519065]
[1733987429454,0.55,3931.6,3930.4,1.05519065]
[1733987429655,1.2363,3931.3,3930.4,1.31968594]
[1733987429889,1.2363,3931.3,3930.4,0.27008415]
[1733987430089,1.2363,3931.3,3930.5,1.31968594]
[1733987430264,1.2363,3931.3,3930.6,2.54413]
[1733987430593,1.2363,3931.3,3930.7,1.31968594]
[1733987430594,1.41493,3931.3,3930.7,1.31968594]
[1733987431251,1.41493,3931.3,3930.5,0.27008415]
[1733987432013,0.55,3931.2,3930.1,2.80643901]
[1733987432163,1.2363,3931.1,3930.2,2.81446415]
[1733987432492,1.432793,3931.1,3930.3,2.54431]
[1733987432674,1.432793,3931.1,3930.5,2.54418]
[1733987433118,1.2363,3931.1,3930.7,2.54404]
[1733987433251,2.7863,3931.1,3930.6,0.27008415]
[1733987434688,2.7863,3931.1,3930.7,2.54406]
[1733987435216,2.7863,3931.1,3930.3,3.0]
[1733987435353,2.7863,3931.1,3930.6,3.0]
[1733987436386,2.7863,3931.1,3930.7,3.0]
[1733987436589,4.3363,3931.1,3930.7,3.0]
[1733987436889,4.3363,3931.1,3930.3,0.27008415]
[1733987436890,0.55,3931.0,3930.3,5.81439415]
[1733987437351,0.55,3931.0,3930.4,2.54424]
[1733987437555,0.55,3931.0,3930.5,3.0]
[1733987437968,0.55,3931.0,3930.3,3.27008415]
[1733987438190,4.3363,3931.1,3930.3,3.27008415]
[1733987438358,4.3363,3931.1,3930.4,0.27008415]
[1733987438554,4.3363,3931.1,3930.7,2.54404]
[1733987438750,4.3363,3931.1,3930.8,3.0]
[1733987439860,5.8863,3931.1,3930.8,3.0]
[1733987441883,5.8863,3931.1,3930.5,3.0]
[1733987442198,5.8863,3931.1,3930.6,3.0]
[1733987443391,7.4363,3931.1,3930.6,3.0]
[1733987444690,8.17993,3931.1,3930.6,3.0]
[1733987444888,8.17993,3931.1,3930.3,3.0]
[1733987446367,8.17993,3931.1,3930.5,3.0]
[1733987446692,9.72993,3931.1,3930.5,3.0]
[1733987449846,11.27993,3931.1,3930.5,3.0]
[1733987449996,1.127993,3931.0,3930.5,3.0]
[1733987451500,11.27993,3931.1,3930.5,3.0]
[1733987453400,12.82993,3931.1,3930.5,3.0]
[1733987453971,12.82993,3931.1,3930.4,1.32075959]
[1733987455407,12.82993,3931.1,3930.4,4.32075959]
[1733987456709,14.37993,3931.1,3930.4,4.32075959]
[1733987459287,14.37993,3931.1,3930.4,1.32075959]
[1733987459581,1.437993,3931.0,3930.4,1.32075959]
[1733987459984,2.987993,3931.0,3930.4,1.32075959]
[1733987460370,2.987993,3931.0,3930.4,3.86501959]
[1733987460804,2.987993,3931.0,3930.5,3.0]
[1733987461212,2.987993,3931.0,3930.4,1.32075959]
[1733987462511,1.1901,3930.8,3930.2,1.32075959]
[1733987462874,1.1901,3930.8,3930.3,2.54433]
[1733987463076,1.1901,3930.8,3930.4,3.0]
[1733987463324,2.7401,3930.8,3930.2,1.32075959]
[1733987463488,2.7401,3930.8,3930.3,3.0]
[1733987464296,0.55,3930.7,3930.2,1.32075959]
[1733987464911,0.55,3930.7,3929.9,1.84005586]
[1733987465079,0.55,3930.5,3929.9,1.84005586]
[1733987465281,1.1901,3930.4,3929.7,0.27008415]
[1733987465580,0.55,3930.3,3929.5,1.32075959]
[1733987465807,0.55,3930.3,3929.4,3.73785]
[1733987466035,0.55,3930.1,3929.3,0.27008415]
[1733987466204,0.55,3929.9,3929.2,2.54502]
[1733987467227,0.55,3929.9,3929.4,3.86564959]
[1733987467534,1.55,3930.1,3929.7,1.32075959]
[1733987467699,1.55,3930.1,3930.0,4.32075959]
[1733987467883,1.55,3930.1,3930.0,7.60398341]
[1733987468077,1.55,3930.1,3930.0,6.54879276]
[1733987468439,1.55,3930.1,3930.0,5.22803317]
[1733987469952,3.1,3930.1,3930.0,5.22803317]
[1733987471641,3.1,3930.1,3930.0,7.33744648]
[1733987471839,3.1,3930.1,3930.0,7.06736233]
[1733987472133,3.1,3930.1,3930.0,4.95794902]
[1733987472538,3.1,3930.1,3930.0,7.06736233]
[1733987472834,3.1,3930.1,3930.0,4.95794902]
[1733987473034,3.1,3930.1,3930.0,7.60954382]
[1733987473223,4.65,3930.1,3930.0,7.60954382]
[1733987473396,4.65,3930.1,3930.0,4.95794902]
[1733987473808,4.65,3930.1,3930.0,7.61178797]
[1733987474209,4.65,3930.1,3930.0,3.0]
[1733987474411,4.65,3930.1,3930.0,5.65383895]
[1733987475045,4.65,3930.1,3930.0,5.65558111]
[1733987476841,6.2,3930.1,3930.0,5.65558111]
[1733987479372,6.2,3930.1,3930.0,5.65590846]
[1733987479951,6.2,3930.1,3930.0,5.65592593]
[1733987480181,6.2,3930.1,3930.0,3.0]
[1733987480182,7.75,3930.1,3930.0,3.0]
[1733987480558,7.75,3930.1,3930.0,4.8112855]
[1733987481468,7.75,3930.1,3930.0,5.9771855]
[1733987481675,7.75,3930.1,3930.0,4.1659]
[1733987482336,7.75,3930.1,3930.0,3.0]
[1733987482535,7.75,3930.1,3930.0,8.20079939]
[1733987482742,7.75,3930.1,3930.0,5.54452]
[1733987483239,7.75,3930.1,3930.0,8.20078384]
[1733987483430,9.3,3930.1,3930.0,5.54452]
[1733987483938,9.3,3930.1,3930.0,8.20085878]
[1733987484555,9.3,3930.1,3930.0,5.54452]
[1733987486521,9.3,3930.1,3930.0,7.35638443]
[1733987486751,10.85,3930.1,3930.0,7.35638443]
[1733987487150,8.30554,3930.1,3930.0,8.82696858]
[1733987487404,3.6449279,3930.1,3930.0,8.82696858]
[1733987487524,2.3726979,3930.1,3930.0,8.82696858]
[1733987487722,7.9e-06,3930.1,3930.0,8.95547212]
[1733987488864,7.9e-06,3930.1,3930.0,17.52877214]
[1733987491635,7.9e-06,3930.1,3930.0,21.24629981]
[1733987492277,1.55,3930.8,3930.7,6.74457]
[1733987492571,1.55,3930.8,3930.7,7.67345]
[1733987492934,1.55,3930.8,3930.7,9.4829557]
[1733987493335,3.1,3930.8,3930.7,7.67345]
[1733987493770,1.55,3931.0,3930.9,2.54394]
[1733987493937,0.27806,3931.0,3930.9,8.35074323]
[1733987494138,11.6031017,3931.1,3931.0,6.74438]
[1733987494338,11.6031017,3931.1,3931.0,8.55306703]
[1733987495255,11.6031017,3931.1,3931.0,8.6813793]
[1733987495461,11.6031017,3931.1,3931.0,6.87269227]
[1733987496437,11.6031017,3931.1,3931.0,9.52129953]
[1733987496744,13.1531017,3931.1,3931.0,7.80157227]
[1733987497358,13.1531017,3931.1,3931.0,10.44965118]
[1733987497562,13.1531017,3931.1,3930.9,2.11885099]
[1733987497563,1.1653,3931.0,3930.9,2.11885099]
[1733987497751,1.1653,3931.0,3930.8,1.05975979]
[1733987497943,1.1653,3931.0,3930.6,1.05975979]
[1733987498540,1.1653,3931.0,3930.5,4.38574778]
[1733987498775,1.1653,3931.0,3930.6,1.05975979]
[1733987498933,1.1653,3931.0,3930.6,4.05975979]
[1733987499970,2.7153,3931.0,3930.6,4.05975979]
[1733987500946,1.1653,3930.9,3930.5,1.05975979]
[1733987501137,1.1653,3930.9,3930.4,1.05975979]
[1733987501345,1.1653,3930.9,3930.3,1.05975979]
[1733987501670,1.1653,3930.9,3930.2,1.05975979]
[1733987502338,1.1653,3930.9,3930.1,6.60415979]
[1733987502880,1.1653,3930.9,3930.2,0.51674489]
[1733987503169,1.1653,3930.7,3930.2,0.51674489]
[1733987504073,1.1653,3930.7,3930.2,4.57650468]
[1733987504375,1.1653,3930.7,3930.2,0.51674489]
[1733987506994,2.7153,3930.7,3930.2,0.51674489]
[1733987507872,2.7153,3930.7,3930.2,3.51674489]
[1733987508272,2.7153,3930.7,3930.3,1.05975979]
[1733987509270,2.7153,3930.7,3930.2,4.57650468]
[1733987509659,2.7153,3930.7,3930.3,3.0]
[1733987510396,4.2653,3930.7,3930.3,3.0]
[1733987510592,4.2653,3930.7,3930.1,1.05975979]
[1733987513672,5.8153,3930.7,3930.1,1.05975979]
[1733987514563,5.8153,3930.7,3930.2,1.05975979]
[1733987515204,5.8153,3930.7,3930.4,1.32080896]
[1733987517000,7.36223827,3930.7,3930.4,1.32080896]
[1733987520303,8.91223827,3930.7,3930.4,1.32080896]
[1733987523704,10.46223827,3930.7,3930.4,1.32080896]
[1733987524106,1.0868,3930.6,3930.1,4.05975979]
[1733987524400,0.55,3930.5,3929.9,1.05975979]
[1733987524598,1.0868,3930.6,3929.8,5.38056875]
[1733987524599,1.0868,3930.4,3929.8,5.38056875]
[1733987525273,1.0868,3930.4,3929.8,4.32080896]
[1733987525468,1.0868,3930.4,3929.8,6.86544896]
[1733987525675,1.0868,3930.4,3930.1,1.32080896]
[1733987525875,1.0868,3930.6,3930.1,1.32080896]
[1733987526933,2.6368,3930.6,3930.1,1.32080896]
[1733987527926,0.55,3930.5,3929.8,1.05975979]
[1733987528087,0.55,3930.5,3930.0,1.32080896]
[1733987528289,1.2041,3930.4,3930.0,1.32080896]
[1733987528625,0.55,3930.3,3930.0,1.32080896]
[1733987530491,2.1,3930.3,3930.0,1.32080896]
[1733987531932,2.1,3930.3,3929.7,0.50451787]
[1733987532079,0.55,3930.1,3929.7,0.50451787]
[1733987532406,1.55,3930.3,3929.7,0.50451787]
[1733987532407,0.55,3929.9,3929.7,0.50451787]
[1733987533189,0.55,3929.9,3929.7,1.82532683]
[1733987533388,0.55,3929.9,3929.2,1.05975979]
[1733987533587,0.55,3929.9,3929.3,1.32080896]
[1733987533787,2.1,3929.9,3929.3,1.32080896]
[1733987534084,2.43041,3929.9,3929.3,1.32080896]
[1733987535585,2.1,3929.9,3929.3,1.32080896]
[1733987535792,2.1,3929.9,3929.3,4.32080896]
[1733987536125,2.1,3929.9,3929.6,1.32080896]
[1733987537223,3.65,3929.9,3929.6,4.32080896]
[1733987537606,3.65,3929.9,3929.6,1.32080896]
[1733987539407,3.65,3929.9,3929.6,4.55216486]
[1733987539609,3.65,3929.9,3929.6,3.86558896]
[1733987540425,5.2,3929.9,3929.6,3.86558896]
[1733987541329,5.2,3929.9,3929.4,3.0]
[1733987541645,5.2,3929.9,3929.1,3.86591896]
[1733987541646,0.55,3929.7,3929.1,3.86591896]
[1733987542010,0.55,3929.7,3929.1,1.32080896]
[1733987542198,0.55,3929.7,3929.2,2.54504]
[1733987542526,0.55,3929.7,3929.3,2.54497]
[1733987542827,1.2041,3929.8,3929.6,2.54478]
[1733987543038,4.65,3929.9,3929.7,1.32080896]
[1733987543260,4.65,3929.9,3929.4,6.86568896]
[1733987543454,4.65,3929.9,3929.6,3.0]
[1733987543880,6.2,3929.9,3929.6,3.0]
[1733987544062,6.2,3929.9,3929.6,2.54478]
[1733987544886,0.55,3929.8,3929.6,2.54478]
[1733987546672,6.2,3929.9,3929.5,0.8112389]
[1733987546827,6.2,3929.9,3929.7,2.54467]
[1733987547025,7.75,3929.9,3929.7,2.54467]
[1733987547581,7.75,3929.9,3929.8,2.54465]
[1733987550331,9.3,3929.9,3929.8,2.54465]
[1733987552930,9.3,3929.9,3929.8,5.54465]
[1733987553131,9.3,3929.9,3929.8,9.53099459]
[1733987553339,9.3,3929.9,3929.8,9.45837533]
[1733987553565,9.3,3929.9,3929.8,8.13756637]
[1733987553828,10.85,3929.9,3929.8,11.30761144]
[1733987554357,10.85,3929.9,3929.8,9.98680248]
[1733987554562,10.85,3929.9,3929.8,8.45540984]
[1733987555061,10.85,3929.9,3929.8,7.9255658]
[1733987555278,10.85,3929.9,3929.8,6.86545896]
[1733987555678,10.85,3929.9,3929.8,7.9255658]
[1733987555882,10.85,3929.9,3929.8,1.32080896]
[1733987556879,1.1678,3929.7,3929.5,1.06010684]
[1733987557181,1.1678,3929.7,3929.5,1.32080896]
[1733987557480,2.7178,3929.7,3929.5,1.32080896]
[1733987560682,4.2678,3929.7,3929.5,1.32080896]
[1733987564303,5.8178,3929.7,3929.5,1.32080896]
[1733987567906,7.3678,3929.7,3929.5,1.32080896]
[1733987571363,8.9178,3929.7,3929.5,1.32080896]
[1733987574779,10.4678,3929.7,3929.5,1.32080896]
[1733987576077,0.55,3929.6,3929.4,1.06010684]
[1733987576367,0.55,3929.6,3929.4,1.32080896]
[1733987576525,0.55,3929.6,3929.4,2.3809158]
[1733987577449,0.55,3929.6,3929.4,1.32080896]
[1733987577843,0.55,3929.6,3929.4,2.3809158]
[1733987578043,2.1,3929.6,3929.5,1.06010684]
[1733987578462,2.1,3929.6,3929.4,5.3809158]
[1733987578763,2.1,3929.6,3929.4,1.32080896]
[1733987580742,1.55,3929.6,3929.4,1.32080896]
[1733987581885,3.1,3929.6,3929.4,1.32080896]
[1733987582288,5.54178,3929.6,3929.3,1.06010684]
[1733987582490,0.55,3929.3,3929.1,4.06010684]
[1733987582688,0.55,3929.3,3928.9,1.06010684]
[1733987583188,0.55,3929.3,3928.7,1.06010684]
[1733987583387,0.55,3929.1,3928.7,1.06010684]
[1733987584599,0.55,3929.1,3928.6,1.06010684]
[1733987585167,0.55,3928.9,3928.5,1.06010684]
[1733987585555,0.55,3928.9,3928.4,5.3809158]
[1733987585987,0.55,3928.9,3928.4,4.32080896]
[1733987586303,0.32866,3928.8,3928.4,1.32080896]
[1733987586590,0.55,3928.7,3928.4,1.32080896]
[1733987587355,1.55,3929.1,3928.4,1.32080896]
[1733987587356,1.55,3929.1,3928.6,2.54543]
[1733987587713,1.55,3929.1,3928.9,1.32080896]
[1733987588463,3.1,3929.1,3928.9,1.32080896]
[1733987590901,3.1,3929.1,3929.0,3.70517]
[1733987591105,3.1,3929.1,3929.0,4.31377858]
[1733987592001,4.65,3929.1,3929.0,4.31377858]
[1733987593220,4.65,3929.1,3929.0,5.37388542]
[1733987593516,4.65,3929.1,3929.0,8.90372946]
[1733987593723,4.65,3929.1,3929.0,7.31377858]
[1733987594027,4.65,3929.1,3929.0,9.96689713]
[1733987594028,2.10488,3929.1,3929.0,9.96689713]
[1733987594184,2.10488,3929.1,3929.0,7.58386273]
[1733987594605,2.10488,3929.1,3929.0,10.23611196]
[1733987595326,3.65488,3929.1,3929.0,10.23611196]
[1733987595989,3.65488,3929.1,3929.0,7.58386273]
[1733987596785,3.65488,3929.1,3929.0,9.39549748]
[1733987598712,5.20488,3929.1,3929.0,9.39549748]
[1733987599415,5.20488,3929.1,3929.0,7.58386273]
[1733987599578,5.20488,3929.1,3929.0,9.39605584]
[1733987599775,5.20488,3929.1,3929.0,9.39605426]
[1733987599974,3.1,3929.6,3929.0,14.10522326]
[1733987600179,3.1,3929.6,3929.5,10.14761318]
[1733987600458,3.1,3929.6,3929.5,9.34646792]
[1733987600610,3.1,3929.6,3929.5,11.99891069]
[1733987601010,3.1,3929.6,3929.5,10.67810173]
[1733987601215,3.1,3929.6,3929.5,8.02565896]
[1733987601431,3.1,3929.6,3929.5,8.63426754]
[1733987602300,4.65,3929.6,3929.5,8.63426754]
[1733987603186,4.65,3929.6,3929.5,8.76224167]
[1733987603515,4.65,3929.6,3929.5,9.13565845]
[1733987603711,4.65,3929.6,3929.5,11.25632059]
[1733987604684,4.65,3929.6,3929.5,9.13565845]
[1733987605697,6.2,3929.6,3929.5,9.13565845]
[1733987606223,6.2,3929.6,3929.5,3.4125558]
[1733987606403,7.4602,3929.6,3929.5,1.82219987]
[1733987609017,9.0102,3929.6,3929.5,1.82219987]
[1733987609999,9.0102,3929.6,3929.5,1.32080896]
[1733987612406,10.5602,3929.6,3929.5,1.32080896]
[1733987613999,10.5602,3929.6,3929.2,3.0]
[1733987614199,10.5602,3929.6,3929.5,1.32080896]
[1733987614400,13.17041639,3929.6,3929.5,1.32080896]
[1733987615739,14.72041639,3929.6,3929.5,1.32080896]
[1733987617155,10.85,3929.6,3929.5,1.32080896]
[1733987618512,10.85,3929.6,3929.5,3.86565896]
[1733987619128,12.4,3929.6,3929.5,3.86565896]
[1733987619823,12.4,3929.6,3929.5,6.86565896]
[1733987620640,12.4,3929.6,3929.5,7.9260407]
[1733987620942,12.4,3929.6,3929.5,6.86565896]
[1733987621843,12.4,3929.6,3929.5,9.05079852]
[1733987622211,12.4,3929.6,3929.5,7.99041678]
[1733987622445,13.95,3929.6,3929.5,7.99041678]
[1733987622648,13.95,3929.6,3929.5,9.05074794]
[1733987622853,13.95,3929.6,3929.5,7.99041678]
[1733987623451,13.95,3929.6,3929.5,9.05073577]
[1733987624239,13.95,3929.6,3929.5,7.99041678]
[1733987624414,13.95,3929.6,3929.5,9.05059432]
[1733987625315,13.95,3929.6,3929.5,7.99041678]
[1733987625627,13.95,3929.6,3929.5,9.0505499]
[1733987625827,15.5,3929.6,3929.5,7.99041678]
[1733987626034,15.5,3929.6,3929.5,9.05056786]
[1733987626356,15.5,3929.6,3929.5,7.99041678]
[1733987628263,15.5,3929.6,3929.5,9.05027733]
[1733987629255,17.05,3929.6,3929.5,9.05027733]
[1733987629629,17.05,3929.6,3929.5,7.99041678]
[1733987631231,17.6,3929.6,3929.4,2.1081375]
[1733987631482,17.6,3929.6,3929.2,2.12066214]
[1733987631483,1.2602,3929.5,3929.2,2.38091459]
[1733987631775,1.2602,3929.5,3929.2,1.32080896]
[1733987632335,0.55,3929.4,3929.2,1.32080896]
[1733987636081,2.1,3929.4,3929.2,1.32080896]
[1733987636278,2.74602,3929.3,3929.2,1.32080896]
[1733987637778,0.55,3929.2,3928.9,1.32080896]
[1733987639657,2.1,3929.2,3928.9,1.32080896]
[1733987639857,2.963312,3929.2,3928.9,1.32080896]
[1733987641153,0.55,3929.0,3928.6,1.06010563]
[1733987641479,0.55,3928.6,3927.9,1.06010563]
[1733987641647,0.55,3928.6,3927.8,2.91116489]
[1733987641648,0.17871,3928.5,3927.8,2.38091459]
[1733987641859,0.55,3928.6,3928.1,1.32080896]
[1733987642060,0.55,3928.4,3927.7,1.32080896]
[1733987642894,0.55,3928.4,3928.0,1.32080896]
[1733987643260,0.55,3928.4,3927.6,0.97775516]
[1733987643460,0.55,3928.4,3927.9,1.32080896]
[1733987645527,0.72871,3928.4,3927.6,3.97775516]
[1733987645694,0.72871,3928.4,3928.0,1.32080896]
[1733987646005,0.55,3928.4,3928.0,1.32080896]
[1733987648167,1.2371,3928.5,3928.3,1.32080896]
[1733987648791,0.26501938,3928.7,3928.3,1.32080896]
[1733987650003,0.81501938,3928.7,3928.6,1.32080896]
[1733987650413,0.26501938,3928.7,3928.6,1.32080896]
[1733987651143,0.55,3929.1,3928.6,1.83255986]
[1733987651406,2.1,3929.1,3929.0,1.32080896]
[1733987653208,1.55,3929.1,3929.0,1.32080896]
[1733987654503,1.55,3929.1,3929.0,4.32080896]
[1733987654708,3.1,3929.1,3929.0,4.32080896]
[1733987654904,3.1,3929.1,3929.0,1.32080896]
[1733987658822,4.65,3929.1,3929.0,1.32080896]
[1733987662218,6.2,3929.1,3929.0,1.32080896]
[1733987665384,6.2,3929.1,3928.7,1.32080896]
[1733987665615,6.2,3929.1,3928.4,1.2045]
[1733987665616,1.2094,3929.0,3928.4,1.2045]
[1733987665815,1.2094,3929.0,3928.6,1.32080896]
[1733987668955,2.7594,3929.0,3928.6,1.32080896]
[1733987669236,1.20594,3928.9,3928.4,1.32080896]
[1733987669930,2.7594,3929.0,3928.4,1.32080896]
[1733987672294,4.3094,3929.0,3928.4,1.32080896]
[1733987674137,4.3094,3929.0,3928.7,1.32080896]
[1733987675136,3.1,3929.0,3928.7,1.32080896]
[1733987675806,4.65,3929.0,3928.7,4.32080896]
[1733987678491,4.65,3929.0,3928.7,5.38091459]
[1733987678692,4.65,3929.0,3928.7,7.92625459]
[1733987678988,4.65,3929.0,3928.9,5.54524]
[1733987679174,6.2,3929.0,3928.9,5.54524]
[1733987681109,6.2,3929.0,3928.7,5.38091459]
[1733987681771,6.2,3929.0,3928.7,7.92627459]
[1733987682828,7.75,3929.0,3928.8,6.60540563]
[1733987684019,7.75,3929.0,3928.9,3.60534563]
[1733987684327,7.75,3929.0,3928.9,6.60534563]
[1733987686404,9.3,3929.0,3928.9,6.60534563]
[1733987687995,9.3,3929.0,3928.9,8.95060214]
[1733987688512,9.3,3929.0,3928.9,6.82994]
[1733987688718,8.9728065,3929.0,3928.9,14.27333095]
[1733987688912,8.9728065,3929.0,3928.9,9.48535314]
[1733987689081,8.9728065,3929.0,3928.9,11.29912442]
[1733987689288,8.9728065,3929.0,3928.9,9.17548842]
[1733987689719,6.47744,3929.1,3929.0,5.54517]
[1733987689929,2.67458717,3929.1,3929.0,32.02456098]
[1733987690288,0.91937412,3929.4,3929.3,4.2847]
[1733987690605,4.12e-06,3929.4,3929.3,13.50569292]
[1733987690805,4.12e-06,3929.4,3929.3,18.5035674]
[1733987691117,4.12e-06,3929.4,3929.3,19.03534454]
[1733987691293,4.12e-06,3929.4,3929.3,15.85124134]
[1733987691893,4.12e-06,3929.4,3929.3,15.98069347]
[1733987692096,4.12e-06,3929.4,3929.3,14.7169151]
[1733987692697,4.12e-06,3929.4,3929.3,9.9018271]
[1733987692904,1.55000412,3929.4,3929.3,12.8951201]